bitfinex-derivatives/quotes_BTCF0:USTF0_20210102
["timestamp","ask_amount","ask_price","bid_price","bid_amount"]
[1609610460421,0.2987,32834.0,32830.0,0.00037897]
[1609610460622,0.3894,32834.0,32830.0,0.00037897]
[1609610460823,0.3894,32834.0,32824.0,0.00037897]
[1609610461022,0.3894,32834.0,32831.0,0.00037897]
[1609610461221,0.3894,32834.0,32825.0,0.00037897]
[1609610461422,0.2987,32834.0,32824.0,0.00037897]
[1609610461822,0.2987,32834.0,32826.0,0.00037897]
[1609610462024,0.2987,32834.0,32825.0,0.00037897]
[1609610462224,0.2987,32834.0,32827.0,0.00037897]
[1609610462425,0.18043158,32828.0,32827.0,0.00037897]
[1609610462627,0.18043158,32828.0,32826.0,0.00037897]
[1609610462825,0.18043158,32828.0,32818.0,0.03764784]
[1609610463027,0.18043158,32828.0,32827.0,0.00037899]
[1609610463326,0.18043158,32828.0,32819.0,0.00037901]
[1609610463627,0.27073158,32828.0,32818.0,0.00037901]
[1609610463827,0.18043158,32828.0,32820.0,0.00037901]
[1609610464228,0.18043158,32828.0,32819.0,0.00037901]
[1609610464428,0.2987,32834.0,32821.0,0.00037901]
[1609610464628,0.2987,32834.0,32820.0,0.00037901]
[1609610464827,0.3911,32834.0,32820.0,0.00037901]
[1609610465029,0.9084,32834.0,32822.0,0.00037901]
[1609610465229,0.9084,32834.0,32821.0,0.00037903]
[1609610465429,0.9084,32834.0,32823.0,0.00037903]
[1609610465630,0.9084,32834.0,32822.0,0.00037903]
[1609610465929,0.9084,32834.0,32824.0,0.00037903]
[1609610466229,0.9084,32834.0,32823.0,0.00037905]
[1609610466430,0.18043158,32824.0,32809.0,0.32313158]
[1609610466830,0.18043158,32824.0,32816.0,0.03727441]
[1609610467030,0.18043158,32824.0,32810.0,0.03765358]
[1609610467229,0.18043158,32824.0,32817.0,0.03765367]
[1609610467630,4.02673158,32824.0,32811.0,0.03765388]
[1609610467832,0.0903,32823.0,32810.0,0.03765482]
[1609610468031,4.02673158,32824.0,32812.0,0.03765871]
[1609610468333,4.02673158,32824.0,32811.0,0.03765936]
[1609610468531,0.31894158,32813.0,32811.0,0.03765936]
[1609610468731,0.31894158,32813.0,32795.0,0.07456054]
[1609610468932,0.31894158,32813.0,32812.0,0.00037915]
[1609610469131,4.2822,32807.0,32791.0,0.03766503]
[1609610469331,4.2822,32807.0,32791.0,0.03728588]
[1609610469532,1.0,32803.0,32791.0,0.03728588]
[1609610469731,1.0,32803.0,32792.0,0.00037921]
[1609610469931,1.15573,32803.0,32784.0,0.03767491]
[1609610470131,1.15573,32803.0,32793.0,0.00037928]
[1609610470532,0.18043158,32794.0,32785.0,0.03768015]
[1609610470734,0.18043158,32794.0,32793.0,0.03730084]
[1609610470932,0.18043158,32794.0,32786.0,0.03768016]
[1609610471334,0.18043158,32794.0,32793.0,0.03768135]
[1609610471533,0.18043158,32794.0,32787.0,0.03768197]
[1609610471734,0.18043158,32794.0,32793.0,0.037682]
[1609610471936,0.27133158,32794.0,32793.0,0.037682]
[1609610472136,0.18043158,32794.0,32788.0,0.03768266]
[1609610472334,0.18043158,32794.0,32776.0,0.16498]
[1609610472335,4.4955,32789.0,32776.0,0.16498]
[1609610472538,0.18043158,32789.0,32776.0,0.16498]
[1609610472735,0.31597158,32789.0,32776.0,0.16498]
[1609610472935,0.31597158,32789.0,32784.0,0.03768833]
[1609610473135,0.31597158,32789.0,32777.0,0.03769089]
[1609610473335,4.7124,32785.0,32765.0,0.113]
[1609610473535,4.7124,32785.0,32778.0,0.03770018]
[1609610473936,4.7124,32785.0,32766.0,0.03769892]
[1609610474136,4.7124,32785.0,32779.0,0.00037952]
[1609610474336,4.7124,32785.0,32767.0,0.03731957]
[1609610474536,0.7282,32772.0,32767.0,0.03731957]
[1609610474739,0.34129158,32780.0,32766.0,0.03732016]
[1609610474938,0.34129158,32780.0,32758.0,0.1261]
[1609610474939,4.2262,32773.0,32768.0,0.03770022]
[1609610475138,0.11302,32773.0,32767.0,0.03770064]
[1609610475338,4.1501,32770.0,32767.0,0.03770064]
[1609610475540,4.1501,32770.0,32769.0,0.00037953]
[1609610475738,4.2411,32770.0,32768.0,0.03732152]
[1609610475938,4.2411,32770.0,32769.0,0.00037953]
[1609610476139,4.1501,32770.0,32769.0,0.00037953]
[1609610476338,4.1501,32770.0,32769.0,0.0377032]
[1609610476538,4.33053158,32770.0,32759.0,0.03770578]
[1609610476737,4.33053158,32770.0,32769.0,0.00037958]
[1609610477138,4.33053158,32770.0,32760.0,0.03770634]
[1609610477338,4.33053158,32770.0,32758.0,0.1261]
[1609610477339,4.42203158,32770.0,32759.0,0.03732665]
[1609610477539,4.42203158,32770.0,32761.0,0.00037958]
[1609610477940,4.33053158,32770.0,32761.0,0.00037958]
[1609610478142,4.33053158,32770.0,32762.0,0.00037958]
[1609610478341,4.33053158,32770.0,32761.0,0.00037958]
[1609610478541,0.79323158,32762.0,32761.0,0.00037958]
[1609610478740,0.79323158,32762.0,32751.0,0.03597]
[1609610478941,0.18043158,32762.0,32758.0,0.03732674]
[1609610479141,4.4835,32761.0,32752.0,0.03770631]
[1609610479341,4.4835,32761.0,32751.0,0.03597]
[1609610479342,4.4835,32761.0,32759.0,0.00037959]
[1609610479741,4.4835,32761.0,32753.0,0.03770863]
[1609610479942,4.4835,32761.0,32760.0,0.00037963]
[1609610480143,4.4835,32761.0,32754.0,0.00037963]
[1609610480342,4.4835,32761.0,32747.0,0.17059]
[1609610480541,4.4835,32761.0,32749.0,0.18043158]
[1609610480941,4.4835,32761.0,32750.0,0.0377096]
[1609610481741,4.4835,32761.0,32750.0,0.00037962]
[1609610482043,4.4835,32761.0,32751.0,0.00037962]
[1609610482242,4.4835,32761.0,32751.0,0.00037963]
[1609610482445,0.18043158,32752.0,32751.0,0.00037963]
[1609610482644,0.18043158,32752.0,32750.0,0.00037963]
[1609610482843,0.18043158,32752.0,32749.0,0.18043158]
[1609610483043,0.18043158,32752.0,32751.0,0.00037962]
[1609610483443,0.18043158,32752.0,32750.0,0.00037962]
[1609610483643,0.27203158,32752.0,32751.0,0.00037962]
[1609610483844,0.18043158,32752.0,32749.0,0.18043158]
[1609610484142,0.18043158,32752.0,32751.0,0.00037961]
[1609610484543,0.18043158,32752.0,32750.0,0.00037961]
[1609610484743,0.18043158,32752.0,32749.0,0.18043158]
[1609610485144,0.0907,32751.0,32750.0,0.00037963]
[1609610485445,0.18043158,32752.0,32749.0,0.18043158]
[1609610485645,0.18043158,32752.0,32750.0,0.00037963]
[1609610485846,0.0929,32751.0,32750.0,0.00037963]
[1609610487047,0.18043158,32752.0,32750.0,0.00037963]
[1609610487648,0.18043158,32752.0,32749.0,0.18043158]
[1609610487948,0.0925,32751.0,32749.0,0.18043158]
[1609610488149,0.20591,32751.0,32749.0,0.18043158]
[1609610489150,0.20591,32751.0,32750.0,0.00037964]
[1609610489350,0.0925,32751.0,32750.0,0.00037964]
[1609610489752,3.668,32763.0,32750.0,0.00037964]
[1609610489953,0.2782,32785.0,32750.0,1.00037964]
[1609610490153,11.921,38076.0,32751.0,0.00037955]
[1609610490154,4.6602,32783.0,32751.0,0.00037955]
[1609610490556,4.6602,32783.0,32767.0,0.18043158]
[1609610491157,4.6602,32783.0,32757.0,0.13042]
[1609610491367,4.82798,32783.0,32757.0,0.13042]
[1609610492356,4.82798,32783.0,32749.0,0.14377]
[1609610492556,4.82798,32783.0,32755.0,0.18043158]
[1609610493567,4.82798,32783.0,32742.0,1.11669]
[1609610493856,4.82798,32783.0,32743.0,0.00038083]
[1609610494457,0.18043158,32759.0,32756.0,0.18043158]
[1609610494657,0.29868158,32759.0,32756.0,0.18043158]
[1609610496260,0.29868158,32759.0,32736.0,1.0]
[1609610496460,0.11825,32759.0,32753.0,0.18043158]
[1609610497861,3.7658,32757.0,32753.0,0.18043158]
[1609610498061,3.7658,32757.0,32754.0,0.00038087]
[1609610498462,0.18043158,32755.0,32754.0,0.00038087]
[1609610499863,0.18043158,32755.0,32738.0,0.03771769]
[1609610500266,0.18043158,32755.0,32738.0,1.03771769]
[1609610500466,4.818,32753.0,32751.0,0.18043158]
[1609610500966,4.818,32753.0,32752.0,0.00038087]
[1609610501167,4.818,32753.0,32752.0,0.03771923]
[1609610502267,4.818,32753.0,32724.0,0.11239544]
[1609610502468,4.818,32753.0,32752.0,0.03771846]
[1609610502869,4.818,32753.0,32747.0,0.18043158]
[1609610503069,4.818,32753.0,32752.0,0.03771914]
[1609610503269,4.818,32753.0,32748.0,0.03771922]
[1609610503672,4.818,32753.0,32752.0,0.03771897]
[1609610503870,4.818,32753.0,32749.0,0.03771962]
[1609610504070,4.818,32753.0,32752.0,0.03771975]
[1609610504471,0.18043158,32753.0,32732.0,0.18043158]
[1609610504673,3.8088,32749.0,32732.0,0.18043158]
[1609610504871,3.8088,32749.0,32733.0,0.03772499]
[1609610505072,3.94512,32749.0,32733.0,0.03772499]
[1609610506578,0.18043158,32734.0,32726.0,0.18043158]
[1609610506778,3.5055,32731.0,32726.0,0.18043158]
[1609610506977,3.5055,32731.0,32727.0,0.03774509]
[1609610507477,3.5055,32731.0,32710.0,0.07472789]
[1609610507679,0.30933158,32734.0,32710.0,0.07472789]
[1609610507878,4.3809,32725.0,32708.0,0.03775226]
[1609610508077,0.30933158,32734.0,32711.0,0.03775047]
[1609610508278,0.30933158,32734.0,32709.0,0.03774965]
[1609610508478,0.18043158,32710.0,32709.0,0.03774965]
[1609610508680,0.18043158,32710.0,32708.0,0.03775365]
[1609610508877,0.18043158,32710.0,32709.0,0.00038133]
[1609610509078,5.16493158,32710.0,32709.0,0.00038133]
[1609610509278,5.16493158,32710.0,32698.0,1.99398408]
[1609610509679,5.16493158,32710.0,32674.0,1.0]
[1609610509680,0.18043158,32710.0,32699.0,0.0003815]
[1609610509879,0.18043158,32710.0,32699.0,0.000763]
[1609610510279,0.18043158,32710.0,32699.0,0.0003815]
[1609610510482,0.13,32713.0,32707.0,0.18043158]
[1609610511079,0.13,32713.0,32699.0,0.0003815]
[1609610511281,4.6367,32708.0,32699.0,0.0003815]
[1609610512482,0.18043158,32700.0,32699.0,0.0003815]
[1609610512681,0.29030158,32700.0,32699.0,0.0003815]
[1609610512882,0.29030158,32700.0,32663.0,1.98577492]
[1609610513083,4.16300158,32700.0,32665.0,4.8159]
[1609610513685,0.29030158,32700.0,32666.0,0.00038168]
[1609610513886,3.4994,32682.0,32666.0,0.00038168]
[1609610514084,3.4994,32682.0,32662.0,0.00038176]
[1609610514486,3.4994,32682.0,32667.0,0.00038174]
[1609610514685,0.15229,32683.0,32660.0,0.18043158]
[1609610515087,4.3946,32663.0,32660.0,0.18043158]
[1609610515287,4.56204,32663.0,32660.0,0.18043158]
[1609610515486,4.56204,32663.0,32653.0,1.98647801]
[1609610515687,0.16744,32663.0,32637.0,0.15279]
[1609610515887,3.6717,32654.0,32637.0,0.15279]
[1609610516087,3.80988,32654.0,32637.0,0.15279]
[1609610516287,0.13818,32654.0,32629.0,1.97935023]
[1609610516489,0.13818,32654.0,32636.0,0.18043158]
[1609610516890,4.0377,32637.0,32636.0,0.18043158]
[1609610517098,4.0377,32637.0,32629.0,1.97935023]
[1609610517304,0.12793,32637.0,32629.0,1.97935023]
[1609610517888,3.8053,32634.0,32629.0,1.97935023]
[1609610518488,3.98573158,32634.0,32633.0,0.18043158]
[1609610518789,3.98573158,32634.0,32629.0,0.87235023]
[1609610518990,4.13554158,32634.0,32629.0,0.87235023]
[1609610519189,4.3634,32630.0,32629.0,0.87235023]
[1609610519392,4.3634,32630.0,32613.0,3.01684487]
[1609610519393,4.3634,32630.0,32613.0,0.13779]
[1609610520388,0.16607,32630.0,32580.0,2.69887933]
[1609610520589,0.16607,32630.0,32578.0,0.2801]
[1609610520590,4.2963,32604.0,32578.0,0.2801]
[1609610520789,0.1269,32615.0,32578.0,0.2801]
[1609610520988,0.16493,32607.0,32578.0,0.2801]
[1609610521193,0.16493,32607.0,32578.0,0.43151]
[1609610521391,4.4313,32598.0,32578.0,0.43151]
[1609610521592,4.60011,32598.0,32578.0,0.43151]
[1609610522590,0.16881,32598.0,32591.0,0.18043158]
[1609610523590,0.16493,32607.0,32591.0,0.18043158]
[1609610523793,0.16493,32607.0,32591.0,1.18043158]
[1609610524193,0.1269,32615.0,32591.0,1.18043158]
[1609610524593,0.18043158,32620.0,32614.0,0.18043158]
[1609610525193,0.18323353,32630.0,32614.0,0.18043158]
[1609610525394,0.16607,32630.0,32614.0,0.18043158]
[1609610525594,0.01717355,32654.0,32606.0,0.12729]
[1609610525794,4.0344,32615.0,32589.0,0.15089]
[1609610525996,0.11353,32615.0,32599.0,0.13446]
[1609610526396,4.7046,32607.0,32599.0,0.13446]
[1609610526596,4.84305,32607.0,32599.0,0.13446]
[1609610526797,4.84305,32607.0,32578.0,0.15141]
[1609610526997,4.84305,32607.0,32579.0,1.0]
[1609610526998,0.13845,32607.0,32579.0,1.0]
[1609610527197,0.13845,32607.0,32579.0,1.10945]
[1609610527997,0.13845,32607.0,32580.0,1.0]
[1609610528597,0.13845,32607.0,32606.0,0.18043158]
[1609610529300,3.5662,32635.0,32606.0,0.29078158]
[1609610530501,3.5662,32635.0,32622.0,0.18043158]
[1609610531501,0.52663593,32666.0,32622.0,0.18043158]
[1609610531702,3.6515,32650.0,32622.0,0.18043158]
[1609610531901,3.77981,32650.0,32622.0,0.18043158]
[1609610532601,0.12831,32650.0,32632.0,0.18043158]
[1609610533201,0.12831,32650.0,32627.0,0.13063]
[1609610534204,0.1273,32659.0,32627.0,0.13063]
[1609610534603,0.1273,32659.0,32645.0,0.18043158]
[1609610535803,0.52464115,32675.0,32645.0,0.18043158]
[1609610536606,0.18043158,32646.0,32645.0,0.18043158]
[1609610537104,0.12984,32668.0,32645.0,0.18043158]
[1609610537904,4.0883,32672.0,32645.0,0.18043158]
[1609610538706,4.0883,32672.0,32664.0,0.18043158]
[1609610538905,0.1771,32687.0,32664.0,0.18043158]
[1609610539908,0.1771,32687.0,32662.0,0.11532]
[1609610540208,0.33962,32687.0,32662.0,0.11532]
[1609610540607,0.33962,32687.0,32664.0,0.18043158]
[1609610541408,0.33962,32687.0,32662.0,0.11532]
[1609610541608,3.8348,32683.0,32662.0,0.11532]
[1609610542609,3.8348,32683.0,32663.0,0.18043158]
[1609610543212,3.8348,32683.0,32662.0,0.11532]
[1609610543810,3.8348,32683.0,32662.0,0.11345382]
[1609610544009,0.33962,32687.0,32662.0,0.11345382]
[1609610544610,0.18043158,32670.0,32668.0,0.18043158]
[1609610544812,0.33962,32687.0,32668.0,0.18043158]
[1609610545911,0.0926,32686.0,32668.0,0.18043158]
[1609610546612,0.18043158,32680.0,32678.0,0.18043158]
[1609610547012,0.0907,32685.0,32678.0,0.18043158]
[1609610548614,0.18043158,32679.0,32662.0,0.11345382]
[1609610548815,0.29219158,32679.0,32650.0,0.12434]
[1609610549114,0.29219158,32679.0,32638.0,1.0]
[1609610549515,0.29219158,32679.0,32651.0,0.16801204]
[1609610549715,0.29219158,32679.0,32651.0,0.16763]
[1609610550216,0.29219158,32679.0,32652.0,0.00038203]
[1609610550722,0.18043158,32664.0,32652.0,0.00038203]
[1609610551922,0.14536,32672.0,32652.0,0.00038203]
[1609610552623,0.18043158,32657.0,32656.0,0.18043158]
[1609610553323,0.18043158,32657.0,32656.0,0.18080441]
[1609610555222,0.18043158,32657.0,32656.0,0.00037283]
[1609610555422,0.18043158,32657.0,32651.0,0.16763]
[1609610555622,0.18043158,32657.0,32628.0,1.0]
[1609610555822,0.18043158,32657.0,32652.0,0.00037287]
[1609610556022,0.1771,32663.0,32650.0,0.1537]
[1609610556224,0.1771,32663.0,32653.0,0.00037287]
[1609610556626,0.1771,32663.0,32651.0,0.00037287]
[1609610556825,0.18043158,32654.0,32650.0,0.1537]
[1609610557424,0.29182158,32654.0,32621.0,4.9854]
[1609610557625,0.29182158,32654.0,32615.0,1.0]
[1609610557825,4.3627,32649.0,32628.0,0.00037295]
[1609610558226,4.3627,32649.0,32616.0,0.03783895]
[1609610558425,4.3627,32649.0,32629.0,0.00037302]
[1609610558627,4.3627,32649.0,32616.0,0.11218]
[1609610558829,0.18043158,32630.0,32618.0,0.18043158]
[1609610559228,0.18043158,32630.0,32619.0,0.0003731]
[1609610560129,4.3627,32649.0,32619.0,0.0003731]
[1609610560330,0.11139,32654.0,32619.0,0.0003731]
[1609610560529,0.11139,32654.0,32619.0,0.03784487]
[1609610560729,0.18043158,32644.0,32641.0,0.18043158]
[1609610561028,0.18043158,32644.0,32619.0,0.03784487]
[1609610561229,0.18043158,32644.0,32642.0,0.00037301]
[1609610561631,0.18043158,32644.0,32635.0,0.14733]
[1609610561831,0.18043158,32644.0,32643.0,0.00037301]
[1609610562032,0.18043158,32644.0,32636.0,0.00037301]
[1609610563932,0.18043158,32644.0,32637.0,0.00037303]
[1609610564533,0.18043158,32644.0,32636.0,0.00037303]
[1609610564735,3.946,32650.0,32638.0,0.00037303]
[1609610564934,3.946,32650.0,32637.0,0.00037305]
[1609610565337,3.946,32650.0,32639.0,0.00037305]
[1609610565536,3.946,32650.0,32638.0,0.00037305]
[1609610565735,1.0,32648.0,32640.0,0.00037305]
[1609610566036,1.0,32648.0,32639.0,0.00037305]
[1609610566238,1.0,32648.0,32641.0,0.00037307]
[1609610566544,1.0,32648.0,32640.0,0.00037307]
[1609610566743,0.18043158,32641.0,32640.0,0.00037307]
[1609610566939,0.18043158,32641.0,32635.0,0.14733]
[1609610567150,0.18043158,32641.0,32640.0,0.00037306]
[1609610567355,0.18043158,32641.0,32636.0,0.00037304]
[1609610567556,0.18043158,32641.0,32640.0,0.00037304]
[1609610568040,0.18043158,32641.0,32637.0,0.00037302]
[1609610568241,0.18043158,32641.0,32640.0,0.00037302]
[1609610568441,0.18043158,32641.0,32638.0,0.00037302]
[1609610568641,0.18043158,32641.0,32634.0,0.00037302]
[1609610568840,0.18043158,32648.0,32640.0,0.18043158]
[1609610569241,0.18043158,32648.0,32641.0,0.00037302]
[1609610570744,0.18043158,32648.0,32644.0,0.18043158]
[1609610570944,1.0,32662.0,32644.0,0.18043158]
[1609610571344,1.0,32662.0,32645.0,0.00037299]
[1609610571547,0.1771,32663.0,32645.0,0.00037299]
[1609610571945,0.1771,32663.0,32644.0,0.18043158]
[1609610572145,0.29628,32663.0,32646.0,0.00037296]
[1609610572345,0.29628,32663.0,32645.0,0.00037296]
[1609610572545,0.29628,32663.0,32647.0,0.00037296]
[1609610572745,0.18043158,32653.0,32651.0,0.18043158]
[1609610573347,0.18043158,32653.0,32652.0,0.00037294]
[1609610573546,0.29628,32663.0,32652.0,0.00037294]
[1609610574746,0.18043158,32659.0,32652.0,0.00037294]
[1609610576547,0.18043158,32659.0,32648.0,0.13452]
[1609610576548,0.18043158,32659.0,32649.0,0.00037292]
[1609610576750,0.29628,32663.0,32651.0,0.18043158]
[1609610576952,0.29628,32663.0,32653.0,0.00037292]
[1609610577149,0.29628,32663.0,32650.0,0.00037292]
[1609610577349,0.29628,32663.0,32652.0,0.00037292]
[1609610577549,0.29628,32663.0,32651.0,0.00037292]
[1609610577849,0.29628,32663.0,32653.0,0.00037292]
[1609610578150,0.29628,32663.0,32649.0,0.03783356]
[1609610578350,0.29628,32663.0,32654.0,0.00037292]
[1609610578651,0.29628,32663.0,32650.0,0.00037292]
[1609610578852,0.29628,32663.0,32655.0,0.18043158]
[1609610579053,0.29628,32663.0,32655.0,0.1808045]
[1609610579255,0.29628,32663.0,32655.0,0.18043158]
[1609610579455,0.29628,32663.0,32656.0,0.00037292]
[1609610579854,0.29628,32663.0,32656.0,0.03783335]
[1609610580855,0.18043158,32662.0,32659.0,0.18043158]
[1609610581257,0.18043158,32662.0,32660.0,0.00037288]
[1609610582957,0.18043158,32662.0,32649.0,0.21826269]
[1609610583157,0.18043158,32662.0,32661.0,0.00037288]
[1609610583359,0.18043158,32662.0,32650.0,0.03783134]
[1609610583757,0.18043158,32662.0,32661.0,0.00037288]
[1609610583957,0.18043158,32662.0,32650.0,0.03783136]
[1609610584157,0.18043158,32662.0,32661.0,0.00037292]
[1609610584559,0.18043158,32662.0,32651.0,0.00037292]
[1609610584760,0.18043158,32662.0,32661.0,0.00037292]
[1609610584960,0.29628,32663.0,32652.0,0.00037292]
[1609610585361,0.29628,32663.0,32662.0,0.00037292]
[1609610585561,0.29628,32663.0,32653.0,0.0003729]
[1609610585760,0.29628,32663.0,32662.0,0.0003729]
[1609610586161,0.29628,32663.0,32654.0,0.0003729]
[1609610586362,0.29628,32663.0,32662.0,0.0003729]
[1609610586561,0.29628,32663.0,32655.0,0.0003729]
[1609610586864,0.18043158,32656.0,32655.0,0.18043158]
[1609610587466,0.18043158,32656.0,32655.0,0.21826471]
[1609610589669,0.18043158,32656.0,32655.0,0.23096471]
[1609610590571,0.18043158,32656.0,32655.0,0.05053313]
[1609610591973,0.18043158,32656.0,32655.0,0.05053312]
[1609610592873,0.18043158,32656.0,32655.0,0.2309647]
[1609610593477,0.29628,32663.0,32655.0,2.2657924]
[1609610593974,0.29628,32663.0,32656.0,0.11274574]
[1609610594276,0.29628,32663.0,32658.0,2.03466414]
[1609610594876,0.29628,32663.0,32662.0,0.18043158]
[1609610595274,0.29628,32663.0,32662.0,0.03783086]
[1609610595675,0.29628,32663.0,32659.0,0.03783176]
[1609610595874,0.29628,32663.0,32662.0,0.0378318]
[1609610596081,0.29628,32663.0,32660.0,0.03783224]
[1609610596276,0.29628,32663.0,32661.0,2.03533504]
[1609610596482,0.29628,32663.0,32662.0,0.03783274]
[1609610598678,0.97288,32663.0,32662.0,0.03783274]
[1609610599079,0.97288,32663.0,32657.0,2.03531176]
[1609610599080,0.97288,32663.0,32658.0,0.03783226]
[1609610599278,0.97288,32663.0,32662.0,0.03783226]
[1609610599478,0.97288,32663.0,32659.0,0.03783432]
[1609610599880,0.97288,32663.0,32658.0,0.03783398]
[1609610600080,0.97288,32663.0,32660.0,0.03783413]
[1609610600280,0.97288,32663.0,32659.0,0.03783413]
[1609610600580,0.97288,32663.0,32661.0,0.03783644]
[1609610600780,0.97288,32663.0,32660.0,0.03783683]
[1609610600984,0.18043158,32661.0,32660.0,0.03783683]
[1609610601182,0.18043158,32661.0,32657.0,2.03531176]
[1609610601584,0.18043158,32661.0,32658.0,0.03783503]
[1609610603187,0.18043158,32661.0,32656.0,0.03783545]
[1609610603487,0.18043158,32661.0,32659.0,0.03783523]
[1609610603687,0.18043158,32661.0,32657.0,0.03783494]
[1609610603987,0.18043158,32661.0,32656.0,0.03783557]
[1609610604287,0.18043158,32661.0,32658.0,0.03783632]
[1609610604488,0.18043158,32661.0,32657.0,0.03783632]
[1609610604788,0.18043158,32661.0,32656.0,0.03783563]
[1609610604990,0.18043158,32657.0,32655.0,0.0127]
[1609610605590,0.18043158,32657.0,32656.0,0.03783672]
[1609610606092,0.18043158,32657.0,32656.0,0.03783687]
[1609610606295,0.18043158,32657.0,32656.0,0.0007459]
[1609610606492,0.18043158,32657.0,32656.0,0.00037295]
[1609610606692,0.18043158,32657.0,32656.0,0.03783779]
[1609610610096,0.18043158,32657.0,32655.0,0.0127]
[1609610610295,0.18043158,32657.0,32656.0,0.03784015]
[1609610610697,0.18043158,32657.0,32656.0,0.07568076]
[1609610611598,1.18043158,32657.0,32656.0,0.07568076]
[1609610612199,2.18043158,32657.0,32656.0,0.07568076]
[1609610612400,6.11793158,32657.0,32656.0,0.03821313]
[1609610612798,6.11793158,32657.0,32633.0,0.12796]
[1609610613000,0.18043158,32642.0,32633.0,0.12796]
[1609610613200,0.18043158,32642.0,32620.0,2.97164158]
[1609610613406,4.06788158,32642.0,32620.0,2.97164158]
[1609610613600,4.06788158,32642.0,32634.0,0.03785854]
[1609610613799,4.06788158,32642.0,32621.0,0.03785799]
[1609610614801,0.35218158,32642.0,32621.0,0.03785799]
[1609610615201,0.18043158,32622.0,32621.0,0.21828957]
[1609610615400,0.18043158,32622.0,32617.0,0.0378582]
[1609610615609,0.18043158,32622.0,32621.0,0.03785865]
[1609610615813,0.18043158,32622.0,32618.0,0.03785772]
[1609610616207,0.18043158,32622.0,32621.0,0.03785748]
[1609610616402,0.18043158,32622.0,32619.0,0.03785738]
[1609610616603,0.15737,32635.0,32621.0,0.03785729]
[1609610617003,0.17175,32642.0,32617.0,1.0378566]
[1609610617203,0.18043158,32639.0,32634.0,0.18043158]
[1609610617403,0.18043158,32639.0,32635.0,0.03785312]
[1609610618206,0.18043158,32639.0,32636.0,0.00037259]
[1609610618606,0.18043158,32639.0,32636.0,0.03784858]
[1609610618805,0.18043158,32639.0,32630.0,0.03784814]
[1609610619206,0.18043158,32639.0,32638.0,0.18043158]
[1609610619606,0.18043158,32639.0,32638.0,0.21827942]
[1609610621209,0.18043158,32639.0,32638.0,0.03784784]
[1609610621608,0.18043158,32639.0,32630.0,0.03784927]
[1609610621808,0.31624158,32639.0,32630.0,0.03784927]
[1609610622008,0.31624158,32639.0,32616.0,0.07495335]
[1609610622009,0.31624158,32639.0,32638.0,0.00037262]
[1609610622212,0.31624158,32639.0,32631.0,0.00037268]
[1609610622409,0.31624158,32639.0,32638.0,0.00037271]
[1609610622810,0.31624158,32639.0,32632.0,0.00037271]
[1609610623011,0.31624158,32639.0,32638.0,0.00037271]
[1609610623211,0.13581,32639.0,32633.0,0.00037269]
[1609610623613,0.13581,32639.0,32622.0,0.03785925]
[1609610623813,0.13581,32639.0,32634.0,0.00037269]
[1609610624013,0.13581,32639.0,32623.0,0.00037269]
[1609610624215,0.13581,32639.0,32635.0,0.00037269]
[1609610624515,0.13581,32639.0,32624.0,0.00037269]
[1609610624915,0.13581,32639.0,32636.0,0.00037272]
[1609610625115,0.18043158,32637.0,32625.0,0.00037272]
[1609610625316,0.18043158,32637.0,32620.0,0.03749061]
[1609610625716,1.18043158,32637.0,32619.0,0.03786308]
[1609610625917,1.18043158,32637.0,32621.0,0.0378623]
[1609610626116,1.18043158,32637.0,32620.0,0.03786306]
[1609610626419,1.18043158,32637.0,32619.0,0.0378626]
[1609610626618,1.18043158,32637.0,32621.0,0.03786107]
[1609610627019,1.18043158,32637.0,32619.0,0.03786193]
[1609610627219,0.18043158,32620.0,32618.0,0.1206]
[1609610627620,0.18043158,32620.0,32611.0,0.18043158]
[1609610627822,0.18043158,32620.0,32619.0,0.03786472]
[1609610628021,0.18043158,32620.0,32613.0,0.12925]
[1609610628221,0.18043158,32620.0,32619.0,0.00037275]
[1609610628623,0.18043158,32620.0,32614.0,0.03786618]
[1609610628822,0.18043158,32620.0,32619.0,0.0003728]
[1609610629023,0.18043158,32620.0,32605.0,0.03787076]
[1609610629223,0.13125,32621.0,32610.0,0.18043158]
[1609610629423,0.13125,32621.0,32619.0,0.0003728]
[1609610629624,0.13125,32621.0,32611.0,0.03787056]
[1609610629822,0.13125,32621.0,32620.0,0.00037282]
[1609610630023,0.13125,32621.0,32612.0,0.00037282]
[1609610630324,0.13125,32621.0,32620.0,0.00037283]
[1609610630725,0.13125,32621.0,32605.0,0.03787326]
[1609610630927,0.13125,32621.0,32620.0,0.00037283]
[1609610631126,0.31168158,32621.0,32606.0,0.00037285]
[1609610631526,0.31168158,32621.0,32604.0,0.11223]
[1609610631527,0.31168158,32621.0,32620.0,0.00037285]
[1609610631727,0.31168158,32621.0,32607.0,0.00037285]
[1609610631926,0.31168158,32621.0,32620.0,0.00037287]
[1609610632129,0.31168158,32621.0,32592.0,0.14068]
[1609610632828,4.28863,32613.0,32593.0,0.00037292]
[1609610633228,0.18043158,32594.0,32589.0,0.00037298]
[1609610633629,0.18043158,32594.0,32588.0,6.4744149]
[1609610633830,0.18043158,32594.0,32590.0,0.00037302]
[1609610634030,0.18043158,32594.0,32589.0,0.00037302]
[1609610634431,0.18043158,32594.0,32591.0,0.00037306]
[1609610634631,0.18043158,32594.0,32590.0,0.00037303]
[1609610634831,0.18043158,32594.0,32588.0,6.4744149]
[1609610635231,0.18043158,32589.0,32588.0,6.4744149]
[1609610635632,0.1422,32590.0,32588.0,6.47478796]
[1609610635834,0.1422,32590.0,32588.0,0.00037306]
[1609610636233,0.1422,32590.0,32576.0,0.15598]
[1609610636433,0.0127,32589.0,32576.0,0.15598]
[1609610636633,0.0127,32589.0,32577.0,0.00037304]
[1609610637334,0.0127,32589.0,32584.0,0.18043158]
[1609610637737,0.0127,32589.0,32585.0,0.00037304]
[1609610638536,0.0127,32589.0,32586.0,0.00037304]
[1609610638735,0.0127,32589.0,32576.0,0.15598]
[1609610639035,0.12535,32589.0,32568.0,1.0]
[1609610639236,0.18043158,32584.0,32583.0,0.18043158]
[1609610639836,0.18043158,32584.0,32568.0,1.0]
[1609610640037,0.18043158,32584.0,32550.0,1.0]
[1609610640436,0.18043158,32584.0,32569.0,0.00037309]
[1609610640637,0.18043158,32584.0,32564.0,0.13813]
[1609610640837,0.18043158,32584.0,32570.0,0.00037311]
[1609610641238,0.18043158,32575.0,32566.0,0.18043158]
[1609610641637,0.29197158,32575.0,32566.0,0.18080471]
[1609610642039,0.29197158,32575.0,32566.0,0.18043158]
[1609610643242,0.29197158,32575.0,32573.0,0.18043158]